fUSD/lending_fUSD_20260515
["ID","MTS","AMOUNT","RATE_DAILY","PERIOD"]
[422286027,1778793071000,-1887.73,0.00040688,7]
[422286026,1778793071000,-2307.6,0.00040688,7]
[422286017,1778793071000,-300.0,0.00040604,30]
[422286021,1778793071000,-306.10456539,0.00040671,120]
[422286018,1778793071000,-421.89949204,0.00040604,30]
[422286023,1778793071000,-568.0,0.00040685,18]
[422286019,1778793071000,-169.99999999,0.00040647,2]
[422286024,1778793071000,-555.94,0.00040688,7]
[422286020,1778793071000,-198.72,0.00040654,120]
[422286022,1778793071000,-168.79277794,0.00040681,2]
[422286025,1778793071000,-389.16,0.00040688,7]
[422286029,1778793071000,-509.2706,0.000407,120]
[422286030,1778793071000,-1024.886,0.000407,120]
[422286015,1778793071000,-714.82790787,0.000406,120]
[422286003,1778793071000,-198.72,0.00040454,120]
[422285978,1778793071000,-168.78,0.00040354,6]
[422285997,1778793071000,-150.0,0.0004042,10]
[422285976,1778793071000,-606.57,0.00040318,120]
[422285974,1778793071000,-589.66,0.00040318,120]
[422285972,1778793071000,-150.0,0.00040318,120]
[422285973,1778793071000,-179.4,0.00040318,120]
[422285975,1778793071000,-572.22,0.00040318,120]
[422286028,1778793071000,-403.0,0.00040689,30]
[422285988,1778793071000,-152.0,0.00040408,30]
[422285979,1778793071000,-385.58,0.00040354,6]
[422285977,1778793071000,-500.0,0.00040325,60]
[422285980,1778793071000,-198.72,0.00040354,120]
[422285981,1778793071000,-1613.0535,0.00040355,30]
[422285986,1778793071000,-168.79277794,0.00040381,2]
[422285983,1778793071000,-150.0,0.00040356,2]
[422285982,1778793071000,-150.0,0.00040356,2]
[422285985,1778793071000,-252.07275904,0.00040356,2]
[422285984,1778793071000,-151.28305713,0.00040356,2]
[422285987,1778793071000,-785663.66697839,0.000404,120]
[422285989,1778793071000,-271.0,0.00040414,30]
[422285991,1778793071000,-150.0,0.0004042,10]
[422285993,1778793071000,-150.0,0.0004042,10]
[422285992,1778793071000,-150.0,0.0004042,10]
[422285990,1778793071000,-150.0,0.0004042,10]
[422286000,1778793071000,-150.0,0.0004042,10]
[422286001,1778793071000,-150.0,0.0004042,10]
[422285998,1778793071000,-150.0,0.0004042,10]
[422285999,1778793071000,-150.0,0.0004042,10]
[422285996,1778793071000,-150.0,0.0004042,10]
[422285994,1778793071000,-150.0,0.0004042,10]
[422286032,1778793071000,-386794.574587,0.00040705,2]
[422285995,1778793071000,-150.0,0.0004042,10]
[422286036,1778793071000,-218.54255152,0.00040743,120]
[422286071,1778793071000,-201.84333383,0.00040905,7]
[422286068,1778793071000,-203.53352498,0.00040905,7]
[422286069,1778793071000,-228.01890573,0.00040905,7]
[422286063,1778793071000,-100000.0,0.000409,120]
[422286065,1778793071000,-193.37225435,0.00040905,7]
[422286064,1778793071000,-3269.6235292,0.000409,30]
[422286066,1778793071000,-229.27565507,0.00040905,7]
[422286072,1778793071000,-373902.30817608,0.00040921,2]
[422286074,1778793071000,-165.30545491,0.0004093,2]
[422286076,1778793071000,-407.37398282,0.00040952,7]
[422286077,1778793071000,-362.36749729,0.00040952,7]
[422286073,1778793071000,-240373.76659543,0.00040924,2]
[422286075,1778793071000,-302.72988785,0.00040952,7]
[422286084,1778793071000,-187.11614586,0.00040952,7]
[422286080,1778793071000,-395.04459064,0.00040952,7]
[422286083,1778793071000,-186.16271731,0.00040952,7]
[422286079,1778793071000,-394.88198319,0.00040952,7]
[422286082,1778793071000,-342.77534556,0.00040952,7]
[422286081,1778793071000,-325.17641698,0.00040952,7]
[422286086,1778793071000,-233.38161743,0.00040952,5]
[422286085,1778793071000,-152.47442158,0.00040952,2]
[422286087,1778793071000,-156.58490743,0.00040952,7]
[422286089,1778793071000,-151.99753085,0.00040952,7]
[422286091,1778793071000,-316.13572178,0.00040966,7]
[422286088,1778793071000,-152.71939328,0.00040952,7]
[422286090,1778793071000,-198.72,0.00040954,120]
[422286031,1778793071000,-1408.3016,0.000407,60]
[422286070,1778793071000,-313.39471411,0.00040905,7]
[422286067,1778793071000,-181.63989698,0.00040905,7]
[422286078,1778793071000,-348.25689039,0.00040952,7]
[422286062,1778793071000,-15000.0,0.000409,30]
[422286035,1778793071000,-157.75351453,0.00040741,2]
[422286061,1778793071000,-160.1968175,0.00040882,7]
[422286034,1778793071000,-386794.574587,0.00040739,2]
[422286033,1778793071000,-918.87,0.00040719,120]
[422286037,1778793071000,-242.73254772,0.00040743,120]
[422286040,1778793071000,-198.72,0.00040754,120]
[422286039,1778793071000,-190.53,0.0004075,120]
[422286041,1778793071000,-2068.67,0.0004078,2]
[422286038,1778793071000,-860.82,0.0004075,120]
[422286042,1778793071000,-168.79277794,0.00040781,2]
[422286044,1778793071000,-373902.30817608,0.00040793,2]
[422286047,1778793071000,-4137.36,0.00040824,2]
[422286046,1778793071000,-178.39541889,0.00040802,2]
[422286045,1778793071000,-1011.9751816,0.000408,15]
[422286048,1778793071000,-165.93,0.00040831,30]
[422286043,1778793071000,-2784.25,0.00040785,2]
[422286058,1778793071000,-328.88783803,0.00040871,7]
[422286059,1778793071000,-249.64447243,0.00040873,60]
[422286055,1778793071000,-198.72,0.00040854,120]
[422286057,1778793071000,-1111.57,0.00040858,120]
[422286052,1778793071000,-155.09854449,0.00040846,2]
[422286053,1778793071000,-321.86952677,0.00040846,7]
[422286056,1778793071000,-151.26039559,0.00040857,7]
[422286054,1778793071000,-383.01827864,0.00040846,7]
[422286050,1778793071000,-362.07140494,0.00040846,7]
[422286049,1778793071000,-165.30545491,0.00040842,2]
[422286060,1778793071000,-168.79277794,0.00040881,2]
[422286051,1778793071000,-370.95907974,0.00040846,7]
[422286108,1778793072000,-350.54542512,0.00040972,7]
[422286116,1778793072000,-584.13578107,0.00040972,7]
[422286105,1778793072000,-416.18141282,0.00040972,7]
[422286113,1778793072000,-514.26059102,0.00040972,7]
[422286112,1778793072000,-394.72655137,0.00040972,7]
[422286114,1778793072000,-917.88325879,0.00040972,7]
[422286119,1778793072000,-375.80686208,0.00040972,7]
[422286118,1778793072000,-318.931988,0.00040972,7]
[422286120,1778793072000,-328.93860952,0.00040972,7]
[422286121,1778793072000,-337.35636083,0.00040972,7]
[422286117,1778793072000,-329.59090112,0.00040972,7]
[422286111,1778793072000,-361.53307651,0.00040972,7]
[422286115,1778793072000,-337.0432116,0.00040972,7]
[422286106,1778793072000,-240.75106928,0.00040972,7]
[422286098,1778793072000,-409.48021584,0.00040971,7]
[422286107,1778793072000,-356.84135181,0.00040972,7]
[422286122,1778793072000,-392.40093346,0.00040972,7]
[422286096,1778793072000,-449.83068174,0.00040971,5]
[422286097,1778793072000,-330.60021681,0.00040971,7]
[422286092,1778793072000,-338.5496419,0.00040966,7]
[422286095,1778793072000,-384.84981111,0.00040971,7]
[422286093,1778793072000,-329.60298279,0.00040966,7]
[422286109,1778793072000,-884.1612599,0.00040972,7]
[422286094,1778793072000,-202.30332681,0.00040971,2]
[422286102,1778793072000,-340.06419297,0.00040972,7]
[422286103,1778793072000,-365.56138921,0.00040972,7]
[422286101,1778793072000,-370.1213323,0.00040971,2]
[422286104,1778793072000,-316.12118949,0.00040972,7]
[422286100,1778793072000,-370.57843593,0.00040971,7]
[422286110,1778793072000,-811.55485599,0.00040972,7]
[422286099,1778793072000,-799.4547533,0.00040971,7]
[422286132,1778793072000,-151.0,0.00040978,60]
[422286130,1778793072000,-367.02033504,0.00040972,7]
[422286123,1778793072000,-436.12608868,0.00040972,7]
[422286126,1778793072000,-393.05042696,0.00040972,7]
[422286156,1778793072000,-8338.00773634,0.0002097,2]
[422286153,1778793072000,-3.81345624,0.00015,2]
[422286154,1778793072000,-147.18654376,0.00015,2]
[422286155,1778793072000,-426.99226366,0.0002097,2]
[422286149,1778793072000,-151.0,9.074e-05,2]
[422286151,1778793072000,-151.0,0.00015,2]
[422286152,1778793072000,-151.0,0.00015,2]
[422286148,1778793072000,-230282.74449924,0.00041,120]
[422286147,1778793072000,-1000000.0,0.00041,120]
[422286146,1778793072000,-350668.60708294,0.00041,120]
[422286144,1778793072000,-385.53107937,0.00040999,10]
[422286145,1778793072000,-297311.9034558,0.00041,30]
[422286139,1778793072000,-201.437409,0.00040997,120]
[422286137,1778793072000,-400.0,0.00040997,2]
[422286150,1778793072000,-151.0,0.00013698,2]
[422286142,1778793072000,-201.437409,0.00040997,120]
[422286140,1778793072000,-201.437409,0.00040997,120]
[422286125,1778793072000,-355.15908764,0.00040972,7]
[422286133,1778793072000,-168.79277794,0.00040981,2]
[422286127,1778793072000,-569.68415729,0.00040972,7]
[422286129,1778793072000,-303.9543305,0.00040972,7]
[422286131,1778793072000,-365.7903005,0.00040972,7]
[422286124,1778793072000,-312.81474197,0.00040972,7]
[422286136,1778793072000,-257.0,0.00040994,120]
[422286138,1778793072000,-713.5607913,0.00040997,2]
[422286134,1778793072000,-240373.76659543,0.00040983,2]
[422286143,1778793072000,-1000.0,0.00040999,120]
[422286141,1778793072000,-201.437409,0.00040997,120]
[422286135,1778793072000,-717.0,0.00040994,120]
[422286128,1778793072000,-310.79979148,0.00040972,7]
[422286172,1778793073000,-151.0,9.074e-05,2]
[422286166,1778793073000,-200.0,0.00027397,7]
[422286173,1778793073000,-151.0,0.00013698,2]
[422286171,1778793073000,-151.0,9.074e-05,2]
[422286170,1778793073000,-985845.56813138,0.00041,120]
[422286167,1778793073000,-300.0,0.0003717,2]
[422286169,1778793073000,-1000000.0,0.00041,120]
[422286168,1778793073000,-769717.25550076,0.00041,120]
[422286163,1778793073000,-200.0,0.00027397,7]
[422286160,1778793073000,-151.0,0.00024658,2]
[422286159,1778793073000,-151.0,0.00024658,2]
[422286162,1778793073000,-200.0,0.00027397,7]
[422286161,1778793073000,-151.0,0.00024658,2]
[422286158,1778793073000,-151.0,0.00024658,2]
[422286157,1778793073000,-151.0,0.00024658,2]
[422286164,1778793073000,-200.0,0.00027397,7]
[422286175,1778793073000,-151.0,0.00015,2]
[422286165,1778793073000,-200.0,0.00027397,7]
[422286174,1778793073000,-253.527364,0.00013698,2]
[422286187,1778793073000,-281.593404,0.00027397,7]
[422286178,1778793073000,-417.0,0.00015551,2]
[422286195,1778793073000,-450.0,0.00021462,2]
[422286194,1778793073000,-874.0,0.00021462,2]
[422286191,1778793073000,-500.0,9.348e-05,2]
[422286193,1778793073000,-2239.0,0.00019678,5]
[422286176,1778793073000,-151.0,0.00015,2]
[422286190,1778793073000,-103.20961511,9.074e-05,2]
[422286189,1778793073000,-396.79038489,9.074e-05,2]
[422286186,1778793073000,-200.0,0.00027397,7]
[422286192,1778793073000,-500.0,9.622e-05,2]
[422286188,1778793073000,-3927.11441919,0.00027397,10]
[422286184,1778793073000,-151.0,0.00024658,2]
[422286183,1778793073000,-151.0,0.00024658,2]
[422286185,1778793073000,-219.931896,0.00024658,2]
[422286181,1778793073000,-69.38152856,0.00018551,2]
[422286180,1778793073000,-16.71659067,0.00018551,2]
[422286179,1778793073000,-330.90188077,0.00018551,2]
[422286177,1778793073000,-151.0,0.00015,2]
[422286182,1778793073000,-417.0,0.00021551,2]
[422286196,1778793074000,-450.0,0.00021462,2]
[422286203,1778793074000,-319.845,0.00036551,2]
[422286198,1778793074000,-2061.53558081,0.00027397,10]
[422286197,1778793074000,-417.0,0.00024551,2]
[422286204,1778793074000,-300.0,0.0003717,2]
[422286202,1778793074000,-225.0,0.00034247,2]
[422286201,1778793074000,-417.0,0.00033551,2]
[422286200,1778793074000,-417.0,0.00030551,2]
[422286208,1778793074000,-11932.83718953,0.00041,120]
[422286205,1778793074000,-300.0,0.0003717,2]
[422286206,1778793074000,-428.95341913,0.0003717,2]
[422286209,1778793074000,-378.69464344,0.0003717,2]
[422286211,1778793074000,-1559.07970742,0.00041,120]
[422286199,1778793074000,-417.0,0.00027551,2]
[422286210,1778793074000,-662.51497167,0.00041,120]
[422286207,1778793074000,-1094.76341147,0.0003717,2]
[422286212,1778793074000,-6212.32652908,0.00041,120]
[422286213,1778793081000,2500.0,0.00024961,120]
[422286214,1778793269000,153.94,0.000271,120]
[422286217,1778793279000,344.68,6.468e-05,2]
[422286216,1778793279000,344.68,6.157e-05,2]
[422286218,1778793279000,344.68,6.779e-05,2]
[422286222,1778793280000,344.68,8.024e-05,2]
[422286221,1778793280000,344.68,7.713e-05,2]
[422286219,1778793280000,344.68,7.09e-05,2]
[422286220,1778793280000,344.68,7.402e-05,2]
[422286223,1778793289000,152.0,0.00013738,7]
[422286224,1778793426000,189.03661333,0.0001,30]
[422286226,1778793665000,1500.0,8.6e-05,3]
[422286227,1778793667000,3000.0,8.7e-05,3]
[422286228,1778793669000,4500.0,8.8e-05,3]
[422286229,1778793671000,6000.0,8.9e-05,3]
[422286230,1778793673000,7500.0,9e-05,3]
[422286235,1778794018000,177.8782401,0.00027397,120]
[422286236,1778794043000,300.0,8.6e-05,3]
[422286237,1778794045000,700.0,8.7e-05,3]
[422286239,1778794047000,398.16263349,8.8e-05,3]
[422286238,1778794047000,701.83736651,8.8e-05,3]
[422286240,1778794049000,1500.0,8.9e-05,3]
[422286241,1778794051000,1800.0,9e-05,3]
[422286242,1778794076000,200.59,5.154e-05,2]
[422286243,1778794076000,23.45,5.154e-05,2]
[422286247,1778794076000,108.29,5.676e-05,2]
[422286244,1778794076000,177.14,5.415e-05,2]
[422286246,1778794076000,115.75,5.676e-05,2]
[422286245,1778794076000,46.9,5.415e-05,2]
[422286249,1778794077000,159.77,5.936e-05,2]
[422286248,1778794077000,51.48,5.936e-05,2]
[422286250,1778794077000,12.79,5.936e-05,2]
[422286251,1778794077000,148.73,6.197e-05,2]
[422286253,1778794077000,86.21,6.458e-05,2]
[422286254,1778794077000,137.83,6.458e-05,2]
[422286255,1778794077000,224.04,6.718e-05,2]
[422286252,1778794077000,75.31,6.197e-05,2]
[422286256,1778794077000,224.04,6.979e-05,2]
[422286261,1778794078000,224.04,7.761e-05,2]
[422286260,1778794078000,158.74449836,7.5e-05,2]
[422286259,1778794078000,65.29550164,7.5e-05,2]
[422286258,1778794078000,87.41449836,7.24e-05,2]
[422286257,1778794078000,136.62550164,7.24e-05,2]
[422286262,1778794079000,224.04,8.022e-05,2]
[422286263,1778794079000,224.04,8.282e-05,2]
[422286264,1778794174000,612.61156677,8.329e-05,2]
[422286275,1778794232000,-250.0,8.42e-05,2]
[422286279,1778794232000,-368.97502382,8.515e-05,2]
[422286277,1778794232000,-500.0,8.515e-05,2]
[422286281,1778794232000,-1200.0,8.515e-05,2]
[422286274,1778794232000,-1881.74964806,8.407e-05,2]
[422286273,1778794232000,-118.25035194,8.407e-05,2]
[422286272,1778794232000,-399.50843323,8.329e-05,2]
[422286276,1778794232000,-347.56555501,8.506e-05,2]
[422286278,1778794232000,-500.0,8.515e-05,2]
[422286283,1778794232000,-150.0,8.515e-05,2]
[422286282,1778794232000,-300.0,8.515e-05,2]
[422286285,1778794232000,-25070.4284946,8.516e-05,2]
[422286284,1778794232000,-881809.25610729,8.516e-05,2]
[422286287,1778794232000,-122693.53579297,8.516e-05,2]
[422286286,1778794232000,-93160.7479238,8.516e-05,2]
[422286288,1778794232000,-1254.41808677,8.516e-05,2]
[422286289,1778794232000,-500.0,8.516e-05,2]
[422286280,1778794232000,-300.0,8.515e-05,2]
[422286316,1778794239000,-7261.45962667,8.516e-05,2]
[422286315,1778794239000,-268.34385821,8.515e-05,2]
[422286314,1778794239000,-530.19651513,8.515e-05,2]
[422286322,1778794240000,-13939.78,8.549e-05,2]
[422286321,1778794240000,-224.04,8.543e-05,2]
[422286320,1778794240000,-364478.5606583,8.516e-05,2]
[422286324,1778794240000,-1855.361,8.615e-05,2]
[422286318,1778794240000,-412.37388559,8.516e-05,2]
[422286317,1778794240000,-2759.0,8.516e-05,2]
[422286319,1778794240000,-600.21942401,8.516e-05,2]
[422286325,1778794240000,-9999.99,8.615e-05,2]
[422286340,1778794240000,-1373.25000103,8.716e-05,2]
[422286330,1778794240000,-160.0,8.657e-05,2]
[422286329,1778794240000,-2500.0,8.616e-05,2]
[422286328,1778794240000,-150.99,8.615e-05,2]
[422286326,1778794240000,-4200.49,8.615e-05,2]
[422286331,1778794240000,-2356115.02197384,8.716e-05,2]
[422286339,1778794240000,-1128.37587025,8.716e-05,2]
[422286341,1778794240000,-1222.69478,8.716e-05,2]
[422286342,1778794240000,-904.1372,8.716e-05,2]
[422286323,1778794240000,-3993.59,8.594e-05,2]
[422286392,1778794241000,-673.12,0.00010989,2]
[422286394,1778794241000,-1600.0,0.0001103,2]
[422286391,1778794241000,-540.11,0.00010989,2]
[422286379,1778794241000,-14845.35804582,0.000109,2]
[422286385,1778794241000,-150.0,0.00010959,2]
[422286377,1778794241000,-1600.0,0.00010779,2]
[422286381,1778794241000,-171.78,0.00010925,2]
[422286378,1778794241000,-500.0,0.00010891,2]
[422286387,1778794241000,-150.0,0.00010959,2]
[422286389,1778794241000,-555.78,0.00010989,2]
[422286375,1778794241000,-500.0,0.00010617,2]
[422286383,1778794241000,-4540.63,0.00010959,2]
[422286408,1778794241000,-166.66,0.00011158,2]
[422286398,1778794241000,-11683.19618535,0.00011099,2]
[422286410,1778794241000,-500.0,0.00011165,2]
[422286412,1778794241000,-150.0,0.00011233,2]
[422286376,1778794241000,-166.66,0.00010749,2]
[422286404,1778794241000,-72826.66442515,0.00011099,2]
[422286402,1778794241000,-72826.66442521,0.00011099,2]
[422286400,1778794241000,-11683.19618535,0.00011099,2]
[422286406,1778794241000,-250.0,0.00011126,2]
[422286414,1778794241000,-72826.66442515,0.00011292,2]
[422286416,1778794241000,-823.0,0.00011333,2]
[422286418,1778794241000,-3292.0,0.00011333,2]
[422286421,1778794241000,-736.0,0.00011333,2]
[422286422,1778794241000,-500.0,0.00011439,2]
[422286424,1778794241000,-2000.0,0.00011559,2]
[422286433,1778794241000,-500.0,0.00011987,2]
[422286396,1778794241000,-11683.19618538,0.00011099,2]
[422286373,1778794241000,-2000.0,0.00010508,2]
[422286369,1778794241000,-2351.0,0.00010303,2]
[422286370,1778794241000,-433.0,0.00010303,2]
[422286437,1778794241000,-49046.05,0.00012055,2]
[422286343,1778794241000,-139256.52017488,8.716e-05,2]
[422286344,1778794241000,-226.82,8.716e-05,2]
[422286345,1778794241000,-150.49024941,8.716e-05,2]
[422286346,1778794241000,-224.04,8.804e-05,2]
[422286347,1778794241000,-214.95940296,8.976e-05,2]
[422286349,1778794241000,-224.04,9.064e-05,2]
[422286348,1778794241000,-208.3309892,8.992e-05,2]
[422286352,1778794241000,-193.0,9.169e-05,2]
[422286350,1778794241000,-171.78,9.104e-05,2]
[422286354,1778794241000,-202.96845818,9.262e-05,2]
[422286356,1778794241000,-420.0,9.366e-05,2]
[422286355,1778794241000,-224.04,9.325e-05,2]
[422286353,1778794241000,-250.0,9.169e-05,2]
[422286351,1778794241000,-450.76,9.133e-05,2]
[422286357,1778794241000,-1680.0,9.366e-05,2]
[422286360,1778794241000,-1852.42,9.574e-05,2]
[422286361,1778794241000,-224.04,9.586e-05,2]
[422286358,1778794241000,-255.0,9.366e-05,2]
[422286359,1778794241000,-2000.0,9.457e-05,2]
[422286363,1778794241000,-166.66,9.929e-05,2]
[422286362,1778794241000,-224.04,9.846e-05,2]
[422286364,1778794241000,-171.78,0.00010014,2]
[422286365,1778794241000,-1600.0,0.00010027,2]
[422286368,1778794241000,-587.0,0.00010303,2]
[422286366,1778794241000,-224.04,0.00010107,2]
[422286367,1778794241000,-1600.0,0.00010278,2]
[422286371,1778794241000,-166.66,0.00010339,2]
[422286372,1778794241000,-500.0,0.00010343,2]
[422286374,1778794241000,-1600.0,0.00010529,2]
[422286435,1778794241000,-3993.59,0.00012032,2]
[422286457,1778794241000,-171.78,0.00012746,2]
[422286428,1778794241000,-500.0,0.00011713,2]
[422286513,1778794241000,-500.0,0.00013698,2]
[422286511,1778794241000,-500.0,0.00013698,2]
[422286503,1778794241000,-500.0,0.00013698,2]
[422286515,1778794241000,-500.0,0.00013698,2]
[422286507,1778794241000,-206.14424477,0.00013698,2]
[422286505,1778794241000,-500.0,0.00013698,2]
[422286516,1778794241000,-500.0,0.00013698,2]
[422286509,1778794241000,-500.0,0.00013698,2]
[422286518,1778794241000,-500.0,0.00013698,2]
[422286521,1778794241000,-500.0,0.00013698,2]
[422286524,1778794241000,-500.0,0.00013698,2]
[422286523,1778794241000,-500.0,0.00013698,2]
[422286528,1778794241000,-500.0,0.00013698,2]
[422286538,1778794241000,-500.0,0.00013698,2]
[422286532,1778794241000,-500.0,0.00013698,2]
[422286531,1778794241000,-500.0,0.00013698,2]
[422286537,1778794241000,-500.0,0.00013698,2]
[422286541,1778794241000,-500.0,0.00013698,2]
[422286542,1778794241000,-500.0,0.00013698,2]
[422286535,1778794241000,-500.0,0.00013698,2]
[422286544,1778794241000,-1030.88,0.00013698,2]
[422286547,1778794241000,-1030.88,0.00013698,2]
[422286550,1778794241000,-1030.88,0.00013698,2]
[422286549,1778794241000,-1030.88,0.00013698,2]
[422286552,1778794241000,-1030.88,0.00013698,2]
[422286554,1778794241000,-1030.88,0.00013698,2]
[422286556,1778794241000,-1030.88,0.00013698,2]
[422286558,1778794241000,-1030.88,0.00013698,2]
[422286426,1778794241000,-166.66,0.00011568,2]
[422286501,1778794241000,-500.0,0.00013698,2]
[422286493,1778794241000,-500.0,0.00013698,2]
[422286526,1778794241000,-500.0,0.00013698,2]
[422286491,1778794241000,-500.0,0.00013698,2]
[422286497,1778794241000,-500.0,0.00013698,2]
[422286441,1778794241000,-500.0,0.00012261,2]
[422286443,1778794241000,-604.04,0.00012329,2]
[422286439,1778794241000,-11683.19618535,0.00012078,2]
[422286446,1778794241000,-1252.0,0.00012466,2]
[422286460,1778794241000,-275.11,0.00012877,2]
[422286448,1778794241000,-1152.0,0.00012467,2]
[422286463,1778794241000,-11683.19618535,0.00013232,2]
[422286450,1778794241000,-4609.0,0.00012467,2]
[422286456,1778794241000,-72826.66442515,0.0001263,2]
[422286461,1778794241000,-14845.35804582,0.00013228,2]
[422286452,1778794241000,-500.0,0.00012535,2]
[422286454,1778794241000,-2000.0,0.0001261,2]
[422286465,1778794241000,-171.78,0.00013656,2]
[422286430,1778794241000,-171.78,0.00011835,2]
[422286469,1778794241000,-500.0,0.00013698,2]
[422286467,1778794241000,-500.0,0.00013698,2]
[422286499,1778794241000,-500.0,0.00013698,2]
[422286487,1778794241000,-500.0,0.00013698,2]
[422286489,1778794241000,-500.0,0.00013698,2]
[422286481,1778794241000,-500.0,0.00013698,2]
[422286483,1778794241000,-500.0,0.00013698,2]
[422286479,1778794241000,-500.0,0.00013698,2]
[422286495,1778794241000,-500.0,0.00013698,2]
[422286477,1778794241000,-500.0,0.00013698,2]
[422286475,1778794241000,-500.0,0.00013698,2]
[422286473,1778794241000,-500.0,0.00013698,2]
[422286471,1778794241000,-500.0,0.00013698,2]
[422286485,1778794241000,-500.0,0.00013698,2]
[422286633,1778794242000,-500.0,0.00013698,2]
[422286631,1778794242000,-500.0,0.00013698,2]
[422286639,1778794242000,-500.0,0.00013698,2]
[422286621,1778794242000,-500.0,0.00013698,2]
[422286635,1778794242000,-500.0,0.00013698,2]
[422286637,1778794242000,-500.0,0.00013698,2]
[422286641,1778794242000,-500.0,0.00013698,2]
[422286628,1778794242000,-500.0,0.00013698,2]
[422286626,1778794242000,-500.0,0.00013698,2]
[422286623,1778794242000,-500.0,0.00013698,2]
[422286645,1778794242000,-500.0,0.00013698,2]
[422286625,1778794242000,-500.0,0.00013698,2]
[422286629,1778794242000,-500.0,0.00013698,2]
[422286643,1778794242000,-500.0,0.00013698,2]
[422286667,1778794242000,-524.74495617,0.00013698,2]
[422286649,1778794242000,-500.0,0.00013698,2]
[422286651,1778794242000,-500.0,0.00013698,2]
[422286653,1778794242000,-249.29936447,0.00013698,2]
[422286664,1778794242000,-500.0,0.00013698,2]
[422286655,1778794242000,-500.0,0.00013698,2]
[422286669,1778794242000,-500.0,0.00013698,2]
[422286656,1778794242000,-500.0,0.00013698,2]
[422286660,1778794242000,-507.15627863,0.00013698,2]
[422286658,1778794242000,-500.0,0.00013698,2]
[422286662,1778794242000,-500.0,0.00013698,2]
[422286671,1778794242000,-500.0,0.00013698,2]
[422286673,1778794242000,-500.0,0.00013698,2]
[422286676,1778794242000,-500.0,0.00013698,2]
[422286622,1778794242000,-500.0,0.00013698,2]
[422286647,1778794242000,-500.0,0.00013698,2]
[422286612,1778794242000,-500.0,0.00013698,2]
[422286560,1778794242000,-1030.88,0.00013698,2]
[422286620,1778794242000,-500.0,0.00013698,2]
[422286678,1778794242000,-500.0,0.00013698,2]
[422286566,1778794242000,-1030.88,0.00013698,2]
[422286568,1778794242000,-1030.88,0.00013698,2]
[422286564,1778794242000,-1030.88,0.00013698,2]
[422286570,1778794242000,-500.0,0.00013698,2]
[422286562,1778794242000,-1030.88,0.00013698,2]
[422286572,1778794242000,-1030.88,0.00013698,2]
[422286574,1778794242000,-500.0,0.00013698,2]
[422286578,1778794242000,-500.0,0.00013698,2]
[422286576,1778794242000,-1030.88,0.00013698,2]
[422286590,1778794242000,-619.09086971,0.00013698,2]
[422286580,1778794242000,-1030.88,0.00013698,2]
[422286592,1778794242000,-500.0,0.00013698,2]
[422286594,1778794242000,-500.0,0.00013698,2]
[422286614,1778794242000,-500.0,0.00013698,2]
[422286596,1778794242000,-500.0,0.00013698,2]
[422286584,1778794242000,-1030.88,0.00013698,2]
[422286588,1778794242000,-500.0,0.00013698,2]
[422286586,1778794242000,-500.0,0.00013698,2]
[422286598,1778794242000,-500.0,0.00013698,2]
[422286600,1778794242000,-500.0,0.00013698,2]
[422286604,1778794242000,-500.0,0.00013698,2]
[422286602,1778794242000,-500.0,0.00013698,2]
[422286606,1778794242000,-500.0,0.00013698,2]
[422286617,1778794242000,-500.0,0.00013698,2]
[422286619,1778794242000,-500.0,0.00013698,2]
[422286618,1778794242000,-500.0,0.00013698,2]